bitfinex-derivatives/quotes_SOLF0:USTF0_20241009
["timestamp","ask_amount","ask_price","bid_price","bid_amount"]
[1728479070123,3.5333,141.6,141.59,0.12502]
[1728479070705,20.4633,141.6,141.59,0.12502]
[1728479070903,16.93,141.6,141.53,0.12502]
[1728479071111,3.5348,141.54,141.53,0.12502]
[1728479071410,9.1748,141.54,141.53,0.12502]
[1728479072312,5.64,141.54,141.48,0.12518]
[1728479072514,16.93,141.52,141.48,0.12518]
[1728479072811,3.5361,141.49,141.48,0.12518]
[1728479073004,1.4477,141.57,141.48,0.12518]
[1728479073204,16.93,141.56,141.48,0.12518]
[1728479073411,3.5351,141.54,141.49,3.5359]
[1728479074014,22.57,141.56,141.48,0.12518]
[1728479074206,22.57,141.56,141.49,16.93]
[1728479074512,22.57,141.56,141.49,20.4659]
[1728479074709,22.57,141.56,141.48,0.12518]
[1728479075200,22.57,141.56,141.48,3.66138]
[1728479075605,3.5352,141.53,141.48,3.66138]
[1728479075908,22.57,141.56,141.48,3.66138]
[1728479076111,22.57,141.56,141.48,3.66148]
[1728479076607,22.57,141.56,141.48,0.12518]
[1728479076808,3.5355,141.52,141.48,0.12518]
[1728479077205,16.93,141.54,141.48,0.12518]
[1728479077412,16.93,141.53,141.48,0.12518]
[1728479077614,5.6,141.52,141.48,0.12518]
[1728479077809,3.5361,141.49,141.48,0.12518]
[1728479078311,20.4661,141.49,141.48,0.12518]
[1728479078915,20.4661,141.49,141.47,0.12502]
[1728479078916,3.5363,141.48,141.47,0.12502]
[1728479079217,3.5363,141.48,141.41,0.12502]
[1728479079218,5.6,141.48,141.41,0.12502]
[1728479079408,3.5378,141.42,141.41,0.12502]
[1728479079908,5.6,141.43,141.41,0.12502]
[1728479080113,3.5377,141.43,141.41,0.12502]
[1728479080308,16.93,141.45,141.41,0.12502]
[1728479080511,3.5371,141.45,141.41,0.12502]
[1728479080717,5.6,141.44,141.41,0.12502]
[1728479081211,5.6,141.44,141.41,3.66292]
[1728479081514,9.137,141.46,141.41,0.12502]
[1728479081712,5.6,141.46,141.43,3.5373]
[1728479081911,5.6,141.46,141.41,17.05502]
[1728479082320,5.6,141.46,141.43,3.5374]
[1728479082719,9.1369,141.46,141.43,3.5374]
[1728479083913,3.5369,141.46,141.43,3.5374]
[1728479085517,3.5368,141.46,141.44,3.5373]
[1728479085822,3.5368,141.46,141.41,17.05502]
[1728479086022,3.5368,141.46,141.43,3.5373]
[1728479087116,5.6,141.48,141.41,17.05502]
[1728479087316,3.5372,141.45,141.42,3.5376]
[1728479087623,3.5372,141.45,141.41,17.05502]
[1728479087817,5.6,141.48,141.41,17.05502]
[1728479088013,18.2501,141.52,141.44,16.93]
[1728479088215,22.53,141.51,141.42,16.93]
[1728479088422,3.537,141.46,141.43,3.5374]
[1728479089122,1.439,141.55,141.45,16.93]
[1728479089311,7.039,141.55,141.47,16.93]
[1728479089623,5.6,141.55,141.47,16.93]
[1728479089833,5.6,141.55,141.48,1.359]
[1728479090028,3.5358,141.51,141.48,1.359]
[1728479090422,5.6,141.55,141.48,1.359]
[1728479090726,3.5355,141.52,141.48,1.359]
[1728479090917,5.6,141.55,141.48,1.359]
[1728479091320,3.5355,141.52,141.48,4.8952]
[1728479091623,5.6,141.55,141.48,4.8952]
[1728479091823,3.5355,141.52,141.48,4.8952]
[1728479092026,5.6,141.55,141.48,4.8952]
[1728479092423,3.5355,141.52,141.48,4.8952]
[1728479093130,3.5355,141.52,141.48,1.359]
[1728479093334,3.5355,141.52,141.49,3.536]
[1728479093632,3.66022,141.53,141.49,3.536]
[1728479094130,3.66022,141.53,141.5,3.5358]
[1728479094329,0.12502,141.53,141.48,1.359]
[1728479094729,0.12502,141.53,141.49,3.536]
[1728479094935,3.66022,141.53,141.49,3.536]
[1728479095634,0.12502,141.53,141.5,3.5357]
[1728479096533,0.12502,141.53,141.48,1.359]
[1728479096731,3.66022,141.53,141.49,3.536]
[1728479098723,0.12502,141.53,141.48,1.359]
[1728479098927,0.12502,141.53,141.5,3.5356]
[1728479099128,0.12502,141.53,141.49,1.3581]
[1728479099434,3.66022,141.53,141.49,4.894]
[1728479099934,3.66022,141.53,141.49,1.3581]
[1728479100139,0.12502,141.53,141.5,3.5357]
[1728479100531,0.12502,141.53,141.52,3.5353]
[1728479101025,0.12502,141.53,141.49,23.8881]
[1728479102038,0.12502,141.53,141.52,3.5353]
[1728479102243,0.12502,141.59,141.51,20.43206111]
[1728479102542,0.12502,141.59,141.53,16.93]
[1728479102847,0.12502,141.59,141.55,16.93]
[1728479103442,3.65882,141.59,141.55,3.5345]
[1728479103644,0.12502,141.59,141.55,3.5345]
[1728479104243,3.534,141.58,141.55,3.5345]
[1728479104744,0.12502,141.59,141.54,7.0021]
[1728479104947,3.65872,141.59,141.56,3.5341]
[1728479105342,3.65872,141.59,141.56,3.5343]
[1728479105343,0.12502,141.59,141.56,3.5343]
[1728479105641,0.12502,141.59,141.55,16.93]
[1728479106149,3.65862,141.59,141.56,3.5342]
[1728479107650,0.12502,141.59,141.57,16.93]
[1728479107844,0.12502,141.59,141.58,3.5338]
[1728479108250,5.62,141.64,141.57,16.93]
[1728479108551,3.533,141.62,141.59,20.4634]
[1728479108945,5.62,141.64,141.59,16.93]
[1728479109254,0.12502,141.65,141.61,16.93]
[1728479109452,0.12502,141.65,141.63,16.93]
[1728479109947,3.5311,141.69,141.66,20.4618]
[1728479110146,0.12502,141.71,141.66,16.93]
[1728479110542,0.12502,141.71,141.69,16.93]
[1728479111055,3.5295,141.76,141.72,3.5303]
[1728479111350,17.05502,141.77,141.7,1.3586]
[1728479111553,3.5296,141.75,141.7,1.3586]
[1728479111849,5.74502,141.77,141.7,18.2886]
[1728479112450,3.5294,141.76,141.72,3.5302]
[1728479112651,5.74502,141.77,141.7,18.2886]
[1728479112952,3.5302,141.73,141.7,1.3586]
[1728479113251,22.67502,141.77,141.68,5.62]
[1728479113652,22.67502,141.77,141.69,16.93]
[1728479114153,22.67502,141.77,141.7,3.5308]
[1728479114350,22.67502,141.77,141.69,16.93]
[1728479114559,5.74502,141.77,141.68,5.62]
[1728479114750,3.5302,141.73,141.68,9.1512]
[1728479115053,5.74502,141.77,141.68,5.62]
[1728479115255,3.5304,141.72,141.68,5.62]
[1728479115448,3.5304,141.72,141.67,5.62]
[1728479115852,3.5312,141.7,141.66,27.14]
[1728479116047,5.74502,141.77,141.66,5.62]
[1728479116352,28.39765235,141.76,141.66,3.5321]
[1728479116554,3.5313,141.7,141.66,3.5321]
[1728479118455,5.62,141.73,141.65,3.65732]
[1728479119247,5.62,141.73,141.65,0.12502]
[1728479119653,2.7748,141.72,141.65,0.12502]
[1728479120045,3.5318,141.68,141.65,0.12502]
[1728479120249,2.7748,141.72,141.65,0.12502]
[1728479120458,3.5322,141.66,141.65,0.12502]
[1728479121157,27.14,141.67,141.59,0.12502]
[1728479121351,1.4277,141.65,141.59,0.12502]
[1728479121551,5.62,141.64,141.59,0.12502]
[1728479122253,3.5337,141.6,141.59,0.12502]
[1728479123055,32.76,141.64,141.59,0.12502]
[1728479123257,3.5335,141.61,141.59,0.12502]
[1728479123461,32.76,141.64,141.59,0.12502]
[1728479123654,3.533,141.63,141.59,0.12502]
[1728479123854,32.76,141.64,141.59,0.12502]
[1728479124258,3.5336,141.61,141.59,0.12502]
[1728479125165,5.62,141.64,141.59,0.12502]
[1728479125954,3.5336,141.61,141.59,0.12502]
[1728479126350,5.62,141.64,141.59,0.12502]
[1728479126562,3.5333,141.62,141.59,0.12502]
[1728479127161,3.5334,141.61,141.59,0.12502]
[1728479127654,3.5332,141.63,141.59,0.12502]
[1728479127859,5.62,141.64,141.59,0.12502]
[1728479128363,1.4277,141.65,141.6,3.5335]
[1728479128561,1.4277,141.65,141.59,0.12502]
[1728479128864,10.5803,141.65,141.61,3.5333]
[1728479129362,4.9603,141.65,141.61,3.5333]
[1728479129661,4.9603,141.65,141.59,0.12502]
[1728479129662,1.4277,141.65,141.59,0.12502]
[1728479129866,5.62,141.66,141.59,0.12502]
[1728479130451,5.62,141.66,141.61,3.5334]
[1728479130452,3.5325,141.65,141.61,3.5334]
[1728479131960,5.62,141.66,141.59,27.26502]
[1728479132270,3.5329,141.64,141.6,3.5336]
[1728479133166,5.62,141.66,141.59,0.12502]
[1728479133167,3.5333,141.62,141.59,0.12502]
[1728479133969,3.5337,141.61,141.59,0.12502]
[1728479134170,5.58,141.62,141.59,0.12502]
[1728479134375,5.58,141.61,141.59,0.12502]
[1728479134565,16.97,141.6,141.53,17.09502]
[1728479134762,16.97,141.6,141.53,0.12502]
[1728479135071,3.5345,141.57,141.53,3.66032]
[1728479135274,5.58,141.61,141.54,16.97]
[1728479135665,3.5341,141.59,141.55,3.5347]
[1728479136872,5.58,141.6,141.53,0.12502]
[1728479137069,1.4205,141.63,141.57,3.5344]
[1728479137370,5.58,141.61,141.53,0.12502]
[1728479137561,3.534,141.59,141.55,3.5348]
[1728479137759,5.58,141.61,141.53,5.70502]
[1728479138174,3.5343,141.58,141.54,3.535]
[1728479138477,5.58,141.61,141.54,3.535]
[1728479138964,5.58,141.61,141.53,0.12502]
[1728479139371,7.0237,141.61,141.53,0.12502]
[1728479139573,3.535,141.55,141.53,0.12502]
[1728479139768,5.58,141.57,141.53,0.12502]
[1728479139978,3.5349,141.55,141.53,0.12502]
[1728479140379,5.58,141.57,141.53,0.12502]
[1728479140563,3.5352,141.54,141.53,0.12502]
[1728479142077,3.535,141.55,141.53,0.12502]
[1728479142375,5.58,141.57,141.53,0.12502]
[1728479142577,3.5347,141.56,141.53,3.66042]
[1728479143474,3.5347,141.56,141.53,0.12502]
[1728479143666,3.5351,141.55,141.53,0.12502]
[1728479144374,3.5348,141.56,141.53,0.12502]
[1728479144568,5.58,141.57,141.53,0.12502]
[1728479144967,3.535,141.55,141.53,0.12502]
[1728479145170,5.58,141.57,141.53,3.66032]
[1728479145370,3.5352,141.54,141.53,0.12502]
[1728479146579,3.535,141.55,141.53,0.12502]
[1728479148483,3.5348,141.56,141.53,0.12502]
[1728479148778,6.9965,141.6,141.53,27.28502]
[1728479148984,3.5347,141.56,141.54,3.535]
[1728479149170,6.9965,141.6,141.53,0.12502]
[1728479149578,3.5352,141.54,141.53,0.12502]
[1728479151777,5.58,141.56,141.47,0.12502]
[1728479151778,3.5363,141.5,141.47,0.12502]
[1728479151974,1.4129,141.55,141.47,0.12502]
[1728479152176,5.58,141.52,141.47,0.12502]
[1728479152784,3.5367,141.48,141.47,0.12502]
[1728479154289,9.1167,141.48,141.47,0.12502]
[1728479154784,5.58,141.48,141.41,0.12502]
[1728479155188,5.58,141.48,141.41,3.66342]
[1728479155390,3.5372,141.46,141.41,0.12502]
[1728479155586,7.0326,141.48,141.41,0.12502]
[1728479156190,3.5377,141.44,141.41,0.12502]
[1728479156888,3.5379,141.43,141.41,0.12502]
[1728479157085,34.1926,141.48,141.41,0.12502]
[1728479157285,27.16,141.46,141.41,0.12502]
[1728479157486,3.5382,141.42,141.41,0.12502]
[1728479158886,5.58,141.44,141.41,0.12502]
[1728479159596,3.5381,141.43,141.41,0.12502]
[1728479160092,5.58,141.44,141.41,0.12502]
[1728479160494,5.58,141.47,141.41,27.28502]
[1728479160693,5.58,141.47,141.44,3.5374]
[1728479161099,5.58,141.47,141.41,27.28502]
[1728479161597,4.144,141.52,141.43,27.16]
[1728479161598,5.58,141.5,141.43,27.16]
[1728479161799,5.58,141.5,141.43,28.5043]
[1728479162586,5.58,141.5,141.41,0.12502]
[1728479162587,5.58,141.5,141.41,27.28502]
[1728479162792,9.18876287,141.5,141.41,0.12502]
[1728479163194,27.16,141.48,141.41,0.12502]
[1728479163692,3.5382,141.42,141.41,0.12502]
[1728479166498,5.6,141.42,141.41,0.12502]
[1728479166697,5.6,141.43,141.41,0.12502]
[1728479166892,2.8026,141.45,141.41,0.12502]
[1728479167203,5.6,141.44,141.41,0.12502]
[1728479167386,5.6,141.46,141.41,0.12502]
[1728479167592,5.6,141.46,141.41,27.28502]
[1728479167896,5.6,141.48,141.41,27.28502]
[1728479168091,9.1368,141.48,141.44,3.5375]
[1728479168498,5.6,141.48,141.43,27.16]
[1728479168700,1.3937,141.52,141.43,27.16]
[1728479169294,9.136,141.51,141.47,3.5367]
[1728479169497,5.6,141.51,141.44,7.0032]
[1728479170001,0.12502,141.53,141.46,27.16]
[1728479170198,0.12502,141.53,141.48,27.16]
[1728479170493,3.5359,141.51,141.45,27.16]
[1728479170887,0.12502,141.53,141.45,27.16]
[1728479171098,3.66062,141.53,141.47,27.16]
[1728479171296,0.12502,141.53,141.47,32.76]
[1728479171493,0.12502,141.53,141.49,3.5363]
[1728479171694,3.5359,141.51,141.47,32.76]
[1728479172195,3.5359,141.51,141.47,5.6]
[1728479172499,0.12502,141.53,141.44,1.4032]
[1728479172798,0.12502,141.53,141.44,4.9408]
[1728479173004,0.12502,141.53,141.44,1.4032]
[1728479173494,9.1158,141.52,141.45,27.16]
[1728479173695,5.70502,141.53,141.45,27.16]
[1728479173895,5.70502,141.53,141.47,3.5367]
[1728479174095,5.70502,141.53,141.45,27.16]
[1728479174399,5.70502,141.53,141.47,3.5368]
[1728479174601,3.5361,141.51,141.47,3.5368]
[1728479174793,5.70502,141.53,141.47,3.5368]
[1728479174994,5.70502,141.53,141.48,3.5366]
[1728479175196,3.5361,141.51,141.48,3.5366]
[1728479175396,5.70502,141.53,141.45,27.16]
[1728479175596,5.70502,141.53,141.47,3.5367]
[1728479175797,3.5358,141.52,141.45,27.16]
[1728479176000,5.70502,141.53,141.45,27.16]
[1728479176296,3.5362,141.51,141.47,3.5368]
[1728479176491,5.70502,141.53,141.45,27.16]
[1728479176697,5.70502,141.53,141.45,32.74]
[1728479176893,5.70502,141.53,141.47,3.5368]
[1728479177200,3.5361,141.51,141.47,3.5368]
[1728479177797,3.5362,141.5,141.47,3.5368]
[1728479178193,3.5362,141.5,141.46,3.5371]
[1728479178402,3.5362,141.5,141.45,32.74]
[1728479178905,3.5362,141.5,141.47,3.5368]
[1728479179100,3.5362,141.5,141.45,32.74]
[1728479179101,3.5364,141.49,141.45,32.74]
[1728479179300,5.70502,141.53,141.45,32.74]
[1728479179600,3.5361,141.51,141.44,1.4032]
[1728479179800,5.70502,141.53,141.44,1.4032]
[1728479180306,3.5368,141.48,141.45,3.5374]
[1728479180502,3.5368,141.48,141.44,1.4032]
[1728479180998,3.5368,141.48,141.44,4.9407]
[1728479181205,3.537,141.47,141.44,4.9407]
[1728479181405,3.537,141.47,141.45,3.5374]
[1728479181706,3.5368,141.48,141.45,3.5374]
[1728479181907,5.70502,141.53,141.44,1.4032]
[1728479181908,0.12502,141.53,141.44,1.4032]
[1728479182101,5.58,141.52,141.45,27.16]
[1728479182606,5.58,141.52,141.46,3.537]
[1728479183007,3.5364,141.49,141.46,3.537]
[1728479183603,3.5367,141.48,141.45,3.5373]
[1728479184511,3.5365,141.49,141.46,3.537]
[1728479184707,5.58,141.52,141.44,1.4032]
[1728479185005,3.5367,141.48,141.46,3.537]
[1728479188312,0.12502,141.53,141.45,27.16]
[1728479188904,3.536,141.51,141.47,3.5368]
[1728479189103,3.536,141.51,141.45,27.16]
[1728479189806,0.12502,141.53,141.49,3.5363]
[1728479190107,3.5359,141.52,141.45,27.16]
[1728479190408,3.5359,141.52,141.47,27.16]
[1728479190605,3.5359,141.52,141.5,3.5361]
[1728479191614,3.66062,141.53,141.5,3.5361]
[1728479192007,3.5357,141.52,141.5,3.5361]
[1728479192215,0.12502,141.53,141.5,3.5361]
[1728479193305,0.12502,141.53,141.51,3.5358]
[1728479193506,0.12502,141.53,141.49,16.98]
[1728479193507,0.12502,141.53,141.5,16.98]
[1728479193817,0.12502,141.53,141.52,16.98]
[1728479194317,0.12502,141.53,141.52,20.5157]
[1728479195013,0.12502,141.53,141.51,4.9824]
[1728479195311,0.12502,141.53,141.51,1.4467]
[1728479195905,0.12502,141.53,141.49,1.3192]
[1728479196114,3.5358,141.52,141.5,3.536]
[1728479196312,0.12502,141.53,141.48,1.3188]
[1728479196519,0.12502,141.53,141.47,5.54]
[1728479197106,3.5358,141.52,141.49,3.5364]
[1728479197712,0.12502,141.53,141.5,16.98]
[1728479198518,0.12502,141.53,141.49,27.17]
[1728479198916,3.66042,141.53,141.5,3.536]
[1728479200510,3.66042,141.53,141.48,5.54]
[1728479200718,0.12502,141.53,141.47,32.71]
[1728479202517,3.5358,141.52,141.49,3.5363]
[1728479202920,3.5359,141.51,141.49,3.5363]
[1728479203618,0.12502,141.53,141.46,1.4467]
[1728479203814,3.5365,141.49,141.46,1.4467]
[1728479204124,5.54,141.52,141.46,1.4467]
[1728479205010,3.536,141.51,141.48,3.5365]
[1728479206319,3.5362,141.5,141.47,3.5368]
[1728479207423,3.5366,141.49,141.46,4.9838]
[1728479208318,5.54,141.52,141.45,3.5373]
[1728479208517,6.9234,141.52,141.45,3.5373]
[1728479208919,6.9234,141.52,141.44,3.5374]
[1728479209119,6.9234,141.52,141.43,27.17]
[1728479209322,34.0934,141.52,141.42,1.3364]
[1728479209517,7.0719,141.51,141.42,1.3364]
[1728479210118,3.5366,141.49,141.42,1.3364]
[1728479210317,5.54,141.48,141.42,1.3364]
[1728479210707,3.5371,141.47,141.42,1.3364]
[1728479210921,5.54,141.48,141.42,1.3364]
[1728479211315,28.5534,141.52,141.43,3.5379]
[1728479211523,5.54,141.51,141.42,1.3364]
[1728479211819,3.5368,141.48,141.42,1.3364]
[1728479212014,3.48804914,141.5,141.42,1.3364]
[1728479212410,3.5376,141.45,141.42,1.3364]
[1728479212610,5.54,141.47,141.41,1.56982]
[1728479212821,5.54,141.47,141.41,0.12502]
[1728479213420,3.5379,141.44,141.41,0.12502]
[1728479213725,5.54,141.47,141.41,0.12502]
[1728479214322,5.54,141.46,141.41,0.12502]
[1728479214517,3.5381,141.43,141.41,0.12502]
[1728479215024,5.54,141.46,141.41,0.12502]
[1728479215220,3.5382,141.42,141.41,0.12502]
[1728479216226,9.0782,141.42,141.41,0.12502]
[1728479216422,3.5392,141.38,141.35,0.12502]
[1728479216617,5.54,141.42,141.35,0.12502]
[1728479217124,3.5394,141.38,141.35,0.12502]
[1728479217326,5.54,141.38,141.35,0.12502]
[1728479217524,3.5397,141.36,141.35,0.12502]
[1728479218717,3.5408,141.32,141.29,0.12502]
[1728479218921,5.54,141.32,141.29,0.12502]
[1728479219318,3.5412,141.3,141.29,0.12502]
[1728479220027,5.54,141.3,141.29,0.12502]
[1728479220527,9.0812,141.3,141.29,0.12502]
[1728479220723,5.54,141.3,141.23,0.12502]
[1728479221134,1.3408,141.32,141.23,0.12502]
[1728479221323,5.54,141.31,141.23,0.12502]
[1728479221523,3.5418,141.28,141.24,3.5425]
[1728479221833,3.5418,141.28,141.23,0.12502]
[1728479222130,3.5422,141.27,141.23,0.12502]
[1728479222335,5.54,141.27,141.23,0.12502]
[1728479223835,3.5427,141.24,141.23,0.12502]
[1728479224521,3.5435,141.21,141.17,30.85942]
[1728479224723,27.31502,141.29,141.17,27.31502]
[1728479224926,5.54,141.28,141.17,27.31502]
[1728479225130,3.5429,141.23,141.19,3.5437]
[1728479225332,9.0829,141.23,141.19,3.5437]
[1728479225529,3.5429,141.23,141.19,3.5437]
[1728479225928,0.12502,141.29,141.21,3.5434]
[1728479226233,5.54,141.28,141.22,27.19]
[1728479226430,3.5422,141.26,141.23,3.5429]
[1728479226627,3.5422,141.26,141.22,27.19]
[1728479226936,3.5427,141.24,141.22,27.19]
[1728479227127,5.54,141.27,141.19,27.19]
[1728479227437,3.5425,141.25,141.22,3.5432]
[1728479227734,5.54,141.27,141.19,27.19]
[1728479228234,3.5426,141.25,141.21,3.5433]
[1728479228435,5.54,141.27,141.21,3.5433]
[1728479228837,0.12502,141.29,141.22,27.19]
[1728479229336,9.0818,141.28,141.24,3.5425]
[1728479229539,5.54,141.28,141.22,27.19]
[1728479229734,5.54,141.28,141.21,4.1621]
[1728479230331,3.5421,141.27,141.23,3.5428]
[1728479230532,5.54,141.28,141.21,4.1621]
[1728479231038,5.54,141.28,141.23,3.5428]
[1728479231630,5.54,141.28,141.21,4.1621]
[1728479231935,5.54,141.28,141.22,3.5431]
[1728479232133,3.5423,141.26,141.21,4.1621]
[1728479232438,5.54,141.28,141.21,4.1621]
[1728479232632,3.5421,141.27,141.21,4.1621]
[1728479232938,0.12502,141.29,141.24,27.19]
[1728479233144,0.12502,141.29,141.26,27.19]
[1728479233637,0.12502,141.29,141.27,3.5419]
[1728479233941,0.12502,141.29,141.26,27.19]
[1728479234346,0.12502,141.29,141.24,27.19]
[1728479235136,5.66502,141.29,141.24,27.19]
[1728479235329,5.66502,141.29,141.27,3.5418]
[1728479235838,5.66502,141.29,141.24,27.19]
[1728479236234,3.5418,141.28,141.25,3.5423]
[1728479236638,5.66502,141.29,141.24,27.19]
[1728479237037,3.542,141.27,141.24,30.7326]
[1728479237231,5.66502,141.29,141.21,36.8921]
[1728479237434,3.5423,141.26,141.23,3.5428]
[1728479237833,3.5423,141.26,141.21,36.8921]
[1728479238144,5.66502,141.29,141.21,36.8921]
[1728479238338,3.5421,141.27,141.24,3.5426]
[1728479238541,5.66502,141.29,141.24,27.19]
[1728479239240,9.20652,141.29,141.26,3.542]
[1728479239440,5.66502,141.29,141.24,27.19]
[1728479240032,3.5419,141.28,141.25,3.5424]
[1728479240236,5.66502,141.29,141.25,3.5424]
[1728479240433,5.66502,141.29,141.24,27.19]
[1728479240637,3.542,141.27,141.24,27.19]
[1728479241043,5.66502,141.29,141.24,27.19]
[1728479242345,5.66502,141.29,141.27,3.5418]
[1728479242550,9.20652,141.29,141.27,20.5518]
[1728479242839,9.20652,141.29,141.27,17.01]
[1728479243036,3.5421,141.27,141.23,17.01]
[1728479243242,5.66502,141.29,141.23,17.01]
[1728479244042,5.66502,141.29,141.24,3.5426]
[1728479244240,5.66502,141.29,141.23,17.01]
[1728479244640,5.66502,141.29,141.24,3.5426]
[1728479244844,5.66502,141.29,141.23,17.01]
[1728479245140,5.66502,141.29,141.23,20.5527]
[1728479245442,0.12502,141.29,141.23,17.01]
[1728479245649,3.5419,141.28,141.25,20.5523]
[1728479246148,5.66502,141.29,141.25,20.5523]
[1728479246444,5.66502,141.29,141.25,20.5524]
[1728479246445,3.5421,141.27,141.25,20.5524]
[1728479247143,3.5421,141.27,141.25,17.01]
[1728479247344,3.5422,141.26,141.23,17.01]
[1728479248037,3.5422,141.26,141.23,20.5528]
[1728479248443,5.66502,141.29,141.23,20.5528]
[1728479248647,3.5425,141.25,141.23,20.5528]
[1728479249050,3.5421,141.27,141.25,3.5423]
[1728479249348,3.5421,141.27,141.23,17.01]
[1728479249547,3.5423,141.26,141.24,3.5425]
[1728479250248,3.5426,141.25,141.23,20.5528]
[1728479250450,3.5426,141.25,141.23,17.01]
[1728479251244,5.66502,141.29,141.23,17.01]
[1728479251457,17.01,141.28,141.21,1.3893]
[1728479252445,17.01,141.28,141.19,17.01]
[1728479252646,3.5433,141.22,141.19,20.5538]
[1728479252844,5.54,141.25,141.17,17.13502]
[1728479253039,22.55,141.25,141.17,0.12502]
[1728479253645,22.55,141.25,141.17,3.66922]
[1728479253950,22.55,141.25,141.17,0.12502]
[1728479254248,5.54,141.25,141.17,0.12502]
[1728479254849,3.543,141.23,141.17,3.66932]
[1728479255049,5.54,141.25,141.17,3.66932]
[1728479255253,5.54,141.25,141.17,0.12502]
[1728479255450,3.5438,141.2,141.17,0.12502]
[1728479255752,3.56851122,141.24,141.17,0.12502]
[1728479256049,22.55,141.25,141.17,0.12502]
[1728479256753,17.01,141.25,141.17,0.12502]
[1728479256944,5.52,141.24,141.17,0.12502]
[1728479257149,8.99778336,141.24,141.17,3.66942]
[1728479257449,5.52,141.24,141.17,0.12502]
[1728479258062,3.5436,141.21,141.17,3.66922]
[1728479258348,3.5436,141.21,141.17,0.12502]
[1728479258550,5.52,141.24,141.17,0.12502]
[1728479258854,1.3487,141.26,141.2,17.01]
[1728479259056,5.52,141.25,141.17,0.12502]
[1728479259356,5.52,141.25,141.18,3.5441]
[1728479259946,3.5438,141.2,141.17,17.13502]
[1728479260148,5.52,141.25,141.17,17.13502]
[1728479260449,3.5434,141.22,141.19,3.5439]
[1728479260649,3.5434,141.22,141.17,17.13502]
[1728479261061,5.52,141.25,141.19,3.5438]
[1728479261355,5.52,141.25,141.17,17.13502]
[1728479261648,1.3435,141.28,141.21,17.01]
[1728479261953,9.0625,141.25,141.21,17.01]
[1728479262149,9.0625,141.25,141.22,3.543]
[1728479262346,22.53,141.25,141.17,0.12502]
[1728479262655,17.01,141.23,141.17,0.12502]
[1728479262851,5.52,141.23,141.17,0.12502]
[1728479263550,3.5439,141.2,141.17,0.12502]
[1728479263751,5.52,141.23,141.17,0.12502]
[1728479264152,3.5438,141.2,141.17,0.12502]
[1728479264355,3.5438,141.2,141.17,3.66942]
[1728479265158,5.52,141.23,141.17,0.12502]
[1728479265659,3.5442,141.18,141.17,0.12502]
[1728479269253,3.5441,141.19,141.17,0.12502]
[1728479269757,5.52,141.2,141.17,0.12502]
[1728479269957,3.5439,141.19,141.17,0.12502]
[1728479270151,18.3498,141.23,141.17,3.66942]
[1728479270359,5.52,141.22,141.18,17.01]
[1728479270559,5.52,141.22,141.18,19.7985]
[1728479271660,3.5435,141.21,141.18,23.3425]